Cogmind - Beta 16.1 @@@ ROGUE MODE // 2026.03.15 @ 01:03:54 Player: QR-TZ Result: Destroyed by Combat Programmer with EMDS Performance ------------- Evolutions (9) 4500 Regions Visited (25) 5000 Robots Destroyed (143) 715 Value Destroyed (5001) 5001 Prototype IDs (66) 1320 Alien Tech Used (4) 800 Bonus (6106) 6106 TOTAL SCORE: 23442 Bonus ------- Triggered Max Security 1000 High Alert Combat Kills 206 Aligned with FarCom 300 Met Data Miner 300 Met Zhirov 300 Found Hidden Lab 3000 Pursued by Intercept 1000 Cogmind --------- Core Integrity 0/1600 Matter 232/300 Energy 44/100 System Corruption 11% Temperature Cool (3) Movement Core (450) Ox8 Location -1/Access Parts ------- > --- POWER (2) -------- (None) > --- PROPULSION (7) --- (None) > --- UTILITY (13) ----- (None) > --- WEAPON (4) ------- Nova Cannon Enhanced Nova Cannon > --- INVENTORY (5) ---- Light Quantum Reactor Improved Coolant Injector Peak State ------------ > --- POWER ------------ Light Particle Reactor Light Particle Reactor > --- PROPULSION ------- Centrium Wheel Cooled Gravmag System Cooled Gravmag System Cooled Gravmag System Antigrav Array > --- UTILITY ---------- Experimental Heat Sink Medium Storage Unit Improved Transmission Jammer Experimental Powered Armor Medium Regenerative Plating Advanced Force Field Hacking Suite Hacking Suite Experimental Hacking Suite Quantum Router > --- WEAPON ----------- Potential Cannon Warp Cannon Fusion Bomb Launcher > --- INVENTORY -------- Improved Fusion Compressor Cooled Gravmag System Improved Coolant Injector Medium Storage Unit Structural Scanner Advanced Recoil Stabilizer Advanced ECM Suite Transdimensional Reconstructor Vibroblade Enhanced Force Lance [Rating: 167] Favorites ----------- Power Micro Nuclear Core Engine Light Ion Engine Power Core Micro Nuclear Core Reactor Quantum Reactor Propulsion Cooled Gravmag System Treads Heavy Siege Treads Leg Improved Carbon-fiber Leg Wheel Centrium Wheel Hover Unit Cooled Gravmag System Flight Unit Flying Fortress v7 Utility Hacking Suite Device Seismic Detector Storage Medium Storage Unit Processor Advanced Target Analyzer Hackware Hacking Suite Protection Improved Medium Armor Plating Weapon Small Laser Energy Gun Small Laser Energy Cannon Heavy Ion Cannon Ballistic Cannon Antimatter Cannon Launcher Improved Grenade Launcher Special Weapon Advanced Remote Datajack Slashing Weapon Chainsword Piercing Weapon Force Lance Build | -11 -10 -10 -10 -9 -8 -7 -7 -7 -6 -6 -6 -6 -5 -5 -5 -5 -5 -4 -4 -4 -4 -3 -2 -2 -1 ------- Run | Yrd Mat Min Exi Min Mat Fac Was Fac Fac Low Low Dat Pro Fac Upp Upp Zhi Pro Fac Arm Lab Res Res Tes Acc Slots Evolved 18 | . . . . . 4 2 . . 2 . . . . 2 . . . . 2 . . 2 2 . 2 Power 1 | . . . . . . . . . . . . . . . . . . . 1 . . . . . . Propulsion 5 | . . . . . 2 . . . . . . . . 2 . . . . . . . . . . 1 Utility 11 | . . . . . 2 2 . . 2 . . . . . . . . . . . . 2 2 . 1 Weapon 1 | . . . . . . . . . . . . . . . . . . . 1 . . . . . . Parts Attached 151 | 7 5 . . 6 19 11 6 5 8 2 . . . 5 4 1 5 . 17 1 8 20 1 2 18 Power 17 | 1 2 . . . 2 . 1 . . . . . . . . . . . 3 . . 6 . . 2 Engine 4 | 1 1 . . . . . . . . . . . . . . . . . 1 . . . . . 1 Core 6 | . 1 . . . 2 . 1 . . . . . . . . . . . 1 . . 1 . . . Reactor 7 | . . . . . . . . . . . . . . . . . . . 1 . . 5 . . 1 Propulsion 41 | 2 2 . . 3 7 1 1 . . . . . . 2 1 . 3 . 5 . 1 7 . 1 5 Treads 7 | 2 . . . . . . . . . . . . . . . . . . . . . 5 . . . Leg 12 | . 2 . . 3 7 . . . . . . . . . . . . . . . . . . . . Wheel 2 | . . . . . . 1 . . . . . . . . . . . . . . . 1 . . . Hover 15 | . . . . . . . . . . . . . . . . . 3 . 5 . 1 1 . . 5 Flight 5 | . . . . . . . 1 . . . . . . 2 1 . . . . . . . . 1 . Utility 59 | 2 1 . . . 5 6 3 2 6 1 . . . 3 2 1 2 . 7 1 4 5 1 . 7 Device 27 | 1 . . . . 3 3 2 . 3 1 . . . . 2 1 . . 4 . . 4 . . 3 Storage 9 | 1 1 . . . 1 . 1 . . . . . . 1 . . 1 . . . . 1 1 . 1 Processor 1 | . . . . . . . . . . . . . . . . . . . . . . . . . 1 Hackware 10 | . . . . . . 1 . 1 1 . . . . 1 . . . . 1 1 2 . . . 2 Protection 12 | . . . . . 1 2 . 1 2 . . . . 1 . . 1 . 2 . 2 . . . . Artifact . | . . . . . . . . . . . . . . . . . . . . . . . . . . Weapon 34 | 2 . . . 3 5 4 1 3 2 1 . . . . 1 . . . 2 . 3 2 . 1 4 Energy Gun 7 | 2 . . . 3 . 1 . . . . . . . . . . . . . . . . . . 1 Energy Cannon 12 | . . . . . 3 2 1 1 . . . . . . . . . . . . 2 1 . . 2 Ballistic Gun . | . . . . . . . . . . . . . . . . . . . . . . . . . . Ballistic Cannon 7 | . . . . . 2 . . . 2 1 . . . . 1 . . . . . 1 . . . . Launcher 4 | . . . . . . 1 . 1 . . . . . . . . . . . . . 1 . 1 . Special Weapon 1 | . . . . . . . . . . . . . . . . . . . . . . . . . 1 Impact Weapon . | . . . . . . . . . . . . . . . . . . . . . . . . . . Slashing Weapon 2 | . . . . . . . . 1 . . . . . . . . . . 1 . . . . . . Piercing Weapon 1 | . . . . . . . . . . . . . . . . . . . 1 . . . . . . Special Melee Weapon . | . . . . . . . . . . . . . . . . . . . . . . . . . . Unidentified Prototypes 24 | . . . . . 1 . 2 2 2 . . . . . . . 3 . 2 1 8 . . 2 1 Parts Lost 36 | . 1 . . 3 1 9 . . 2 . . . . . 2 . . 1 1 . 2 . 10 1 3 Power 6 | . 1 . . 1 . 1 . . . . . . . . . . . 1 . . . . 2 . . Propulsion 8 | . . . . . . 3 . . 1 . . . . . 1 . . . . . . . 2 1 . Utility 16 | . . . . . 1 3 . . 1 . . . . . 1 . . . 1 . 2 . 4 . 3 Weapon 6 | . . . . 2 . 2 . . . . . . . . . . . . . . . . 2 . . Highest Loss Streak 10 | . 1 . . 3 1 5 . . 1 . . . . . 2 . . 1 1 . 2 . 10 1 2 To Critical Strikes 2 | . . . . . . . . . . . . . . . 1 . . . . . . . 1 . . Average Backups 9 | 1 5 9 9 6 10 16 10 9 9 9 10 10 10 8 9 9 10 9 9 9 9 9 6 4 4 Power . | . 1 1 1 . . 2 1 1 . . . . . . . . . . . . . . . . . Propulsion 1 | . 1 3 3 3 2 2 1 . 2 4 4 4 4 2 1 1 . . . . 1 1 1 . . Utility 3 | . 2 3 2 2 3 5 3 5 4 3 4 4 4 4 3 4 4 5 5 5 5 3 2 3 2 Weapon 2 | . . 1 1 . 4 4 4 3 2 2 2 2 2 2 3 4 4 3 2 3 2 2 2 1 1 Tool/Special . | . . . . . . . . . . . . . . . . . . . . . . . . . . Unused Backups 37 | 1 . . 5 1 6 2 1 4 4 1 . . . 3 . . 1 . 1 . 1 3 . . 3 Power 2 | . . . . . . . . . 1 . . . . . . . . . . . . . . . 1 Propulsion 8 | 1 . . 1 1 1 . . 1 . . . . . 1 . . 1 . . . . 1 . . . Utility 16 | . . . 2 . 4 1 . 3 1 1 . . . 1 . . . . 1 . 1 . . . 1 Weapon 9 | . . . 1 . 1 1 . . 2 . . . . 1 . . . . . . . 2 . . 1 Tool/Special 2 | . . . 1 . . . 1 . . . . . . . . . . . . . . . . . . Average Slot Usage (%) 84 | . 99 100 100 95 89 95 74 75 78 79 80 80 80 81 81 67 72 75 89 98 90 85 74 18 32 Engine 2 | . 13 14 14 1 . . . . . . . . . . . . . . 4 . . . . . 1 Core 4 | . . . . 8 9 6 6 7 6 6 6 6 6 5 5 5 5 4 2 5 5 2 . 1 . Reactor 1 | . . . . . . . . . . . . . . . . . . . 1 5 5 6 6 . 1 Treads 1 | . 23 . . . . . . . . . . . . . . . . . . . . 4 12 4 . Leg 9 | . 4 28 28 28 35 29 1 . . . . . . . . . . . . . . . . . . Hover 6 | . . . . . . . . . . . . . . . . . 10 17 27 31 26 13 . . 9 Flight 2 | . . . . . . . 6 7 5 6 6 6 6 16 17 17 5 . . . . . . . . Device 11 | . 14 14 14 14 14 22 27 10 8 10 8 13 13 7 5 11 14 11 7 6 8 14 14 2 3 Storage 8 | . 14 14 14 14 9 7 7 15 11 7 10 6 6 5 5 5 5 5 5 5 5 4 4 1 1 Hackware 12 | . . . . . . 3 7 13 19 20 20 20 20 20 23 23 23 23 25 22 19 18 15 4 2 Protection 5 | . . . . . 2 7 . 5 12 13 12 13 13 11 10 . . . 1 5 5 6 7 . . Energy Gun 5 | . 28 28 28 28 2 . . . . . . . . . . . . . . . . . . . 1 Energy Cannon 3 | . . . . . 8 11 5 5 . . . . . . . . . . . . 4 10 10 1 1 Ballistic Cannon 2 | . . . . . 6 1 1 . 4 8 11 6 5 4 7 . . . 4 5 2 . . . . Slashing Weapon 2 | . . . . . . . . 6 5 3 1 6 5 5 2 2 5 5 5 5 4 2 . . . Peak Build Rating 167 | 7 10 8 11 15 43 53 70 71 83 84 82 78 80 90 91 63 66 63 116 114 149 167 167 75 117 Average Rating 73 | 5 7 8 8 13 32 48 64 70 78 80 80 78 77 87 86 58 59 62 91 109 131 160 154 27 59 On Entrance 61 | . 7 8 8 11 15 43 38 70 71 80 82 78 78 77 87 56 63 58 59 113 104 148 166 70 3 Avg Prop Armor Cover (%) 7 | . 11 . . . . 19 . . . . . . . . . . . . 7 . . 3 . . . Naked Turns 225 | . . . . . . . . . . . . . . . . . . . . . . . . 69 156 Heaviest Build 163 | 11 18 16 16 20 70 73 54 39 50 54 48 45 45 45 49 24 31 30 66 66 101 132 163 60 46 Greatest Support 210 | 40 40 20 20 23 72 72 50 50 50 50 50 50 50 68 62 25 33 48 86 66 86 210 210 130 62 Greatest Overweight (x) 16 | 2 1 . . . . 3 3 . 16 1 . . . . . . 2 . . . 1 7 . . 3 Average Overweight (x) . | . . . . . . . . . . . . . . . . . . . . . . 1 . . . Largest Inventory Capacity 20 | 8 10 10 10 10 20 20 20 10 10 10 10 10 10 10 10 10 10 10 10 10 10 10 20 20 5 Average Capacity 10 | 7 8 10 10 10 15 20 10 10 10 10 10 10 10 10 10 10 10 10 10 10 10 10 13 10 5 Most Carried 20 | 3 9 10 10 10 20 20 20 10 10 10 10 10 10 10 10 10 10 9 10 10 10 10 7 5 5 Average Carried 10 | 1 5 9 9 9 13 19 10 9 9 9 10 10 10 9 9 9 9 8 9 9 9 9 6 4 4 Final Capacity 20 | 8 10 10 10 10 20 20 10 10 10 10 10 10 10 10 10 10 10 10 10 10 10 10 20 5 5 Final Carried 20 | 3 9 10 10 10 20 20 10 10 10 10 10 10 10 10 10 10 10 9 9 10 10 8 5 4 2 Class Distribution -------------------- 37% | Hacker-Mutant 31% | Mutant 14% | Wizard-Tank 7% | Scavenger-Mutant 6% | Hacker-Sprinter Dominant Class ---------------- Mutant | -10/Materials Mutant | -10/Mines Mutant | -10/Exiles Scavenger-Mutant | -9/Mines Mutant | -8/Materials Mutant | -7/Factory Mutant | -7/Waste Hacker-Mutant | -7/Factory Hacker-Mutant | -6/Factory Hacker-Mutant | -6/Lower Caves Hacker-Mutant | -6/Lower Caves Hacker-Mutant | -6/Data Miner Hacker-Mutant | -5/Proximity Caves Hacker-Mutant | -5/Factory Hacker-Mutant | -5/Upper Caves Hacker-Sprinter | -5/Upper Caves Hacker-Mutant | -5/Zhirov Hacker-Mutant | -4/Proximity Caves Hacker-Mutant | -4/Factory Hacker-Mutant | -4/Armory Wizard-Tank | -4/Lab Wizard-Tank | -3/Research Wizard-Tank | -2/Research Mutant | -2/Testing Scavenger-Skirmisher | -1/Access Resources | -11 -10 -10 -10 -9 -8 -7 -7 -7 -6 -6 -6 -6 -5 -5 -5 -5 -5 -4 -4 -4 -4 -3 -2 -2 -1 ----------- Run | Yrd Mat Min Exi Min Mat Fac Was Fac Fac Low Low Dat Pro Fac Upp Upp Zhi Pro Fac Arm Lab Res Res Tes Acc Matter Collected 6184 | 270 45 . . 65 575 117 . 677 503 310 94 . . 394 77 152 . 362 604 . 395 962 137 122 323 Remotely . | . . . . . . . . . . . . . . . . . . . . . . . . . . Salvage Created 6280 | 106 296 . . 96 686 290 . 469 437 89 52 . 112 451 23 . . 134 648 . 76 1725 260 . 330 Parts 278 | 14 17 . . 4 28 15 . 24 14 1 3 . 14 14 1 . . 13 21 . 3 67 8 . 17 Haulers Intercepted 8 | . . . . . 1 1 . 1 . . . . . 1 . . . . 2 . . 2 . . . Recyclers Shooed 4 | . . . . . . . . . . . . . . 2 . . . . 1 . . 1 . . . Parts Field Recycled . | . . . . . . . . . . . . . . . . . . . . . . . . . . Retrieved Matter . | . . . . . . . . . . . . . . . . . . . . . . . . . . Parts Self-Destructed 31 | . . . . . . . . . . 1 3 . 14 . 1 7 . 5 . . . . . . . Prevented 1 | . . . . . . . . . . . . . . . . 1 . . . . . . . . . Parts Restored . | . . . . . . . . . . . . . . . . . . . . . . . . . . Kills | -11 -10 -10 -10 -9 -8 -7 -7 -7 -6 -6 -6 -6 -5 -5 -5 -5 -5 -4 -4 -4 -4 -3 -2 -2 -1 ------- Run | Yrd Mat Min Exi Min Mat Fac Was Fac Fac Low Low Dat Pro Fac Upp Upp Zhi Pro Fac Arm Lab Res Res Tes Acc Combat Hostiles Destroyed 87 | . 7 . . 2 11 9 . . 4 3 3 . 8 . 1 . . 12 . . 1 15 8 . 3 Melee 1 | . . . . . . . . . . . . . . . . . . . . . 1 . . . . Guns 9 | . 7 . . 2 . . . . . . . . . . . . . . . . . . . . . Cannons 41 | . . . . . 11 5 . . 3 3 3 . 4 . 1 . . . . . . 7 1 . 3 AOE 31 | . . . . . . 4 . . 1 . . . 4 . . . . 12 . . . 3 7 . . Classes Destroyed 15 | 1 3 . . . 5 3 . 1 1 . . . . . . . . . 1 . . . . . . Worker 12 | . 2 . . . 1 1 . 3 2 . . . . 1 . . . . . . . 2 . . . Builder 6 | . . . . . . . . . . . . . . . . . . . 3 . . 3 . . . Tunneler 4 | 4 . . . . . . . . . . . . . . . . . . . . . . . . . Hauler 8 | . . . . . 1 1 . 1 . . . . . 1 . . . . 2 . . 2 . . . Recycler 21 | . . . . . 2 1 . 5 2 . . . . 2 . . . . 3 . . 5 . . 1 Operator 3 | . . . . . . . . 1 1 . . . . . . . . . . . . 1 . . . Watcher 5 | . . . . . 1 . . . . . . . . 1 . . . . . . . 1 2 . . Swarmer 35 | . 2 . . . . 3 . . . 1 3 . 8 . . . . 12 . . . 2 4 . . Grunt 17 | . 5 . . 2 9 . . . . 1 . . . . . . . . . . . . . . . Sentry 5 | . . . . . 1 . . . . 1 . . . . . . . . . . . 2 1 . . Demolisher 2 | . . . . . . 2 . . . . . . . . . . . . . . . . . . . Hunter 4 | . . . . . 1 . . . . . . . . . . . . . . . . . 3 . . Programmer 15 | . . . . . . 1 . . 3 . . . . . 1 . . . . . . 7 . . 3 Behemoth 1 | . . . . . . . . . 1 . . . . . . . . . . . . . . . . Tracker 2 | . . . . . . . . . . . . . . . . . . . . . . 2 . . . Combat Programmer 2 | . . . . . . . . . . . . . . . . . . . . . . 2 . . . Assembled 3 | . . . . . . 3 . . . . . . . . . . . . . . . . . . . Best Kill Streak 9 | 3 3 . . 2 4 5 . 2 3 2 3 . 4 2 1 . . 5 2 . 1 7 9 . 2 Combat Bots Only 7 | . 2 . . 2 4 3 . . 3 2 3 . 4 . 1 . . 5 . . 1 5 7 . 2 Max Kills in Single Turn 5 | 1 2 . . 1 1 2 . 2 1 1 1 . 2 1 1 . . 5 1 . 1 2 2 . 1 Gunslinging . | . . . . . . . . . . . . . . . . . . . . . . . . . . Exploded 5 | . . . . . . 1 . . 1 . . . 2 . . . . 5 . . . 1 2 . . Melee 1 | . . . . . . . . . . . . . . . . . . . . . 1 . . . . Uniques/NPCs Destroyed 1 | . . . . . . . . . . . . . . . . . . . . . 1 . . . . A5 (-4/Lab) Combat | -11 -10 -10 -10 -9 -8 -7 -7 -7 -6 -6 -6 -6 -5 -5 -5 -5 -5 -4 -4 -4 -4 -3 -2 -2 -1 -------- Run | Yrd Mat Min Exi Min Mat Fac Was Fac Fac Low Low Dat Pro Fac Upp Upp Zhi Pro Fac Arm Lab Res Res Tes Acc Hostile Shots Fired 1006 | . 45 1 . 19 56 69 1 . 55 40 21 . 73 5 40 5 . 27 12 1 58 113 147 65 153 Missed 334 | . 10 . . 2 24 20 1 . 27 21 7 . 33 2 12 2 . 14 3 . 18 27 47 29 35 Hits 672 | . 35 1 . 17 32 49 . . 28 19 14 . 40 3 28 3 . 13 9 1 40 86 100 36 118 Melee 8 | . . . . . . 3 . . . . . . . . . . . . . . . . . 5 . Projectile 664 | . 35 1 . 17 32 46 . . 28 19 14 . 40 3 28 3 . 13 9 1 40 86 100 31 118 AOE 31 | . . . . . . 30 . . . . . . . . . . . . . . . . . . 1 Critical Strikes 31 | . 1 . . 2 2 . . . 2 . . . . . 3 1 . 1 . . 1 5 6 3 4 Part Disruptions 2 | . . . . . . . . . . . . . . . . . . . . . . . 2 . . Damage Taken 14302 | . 396 13 . 243 504 1861 . 45 584 142 169 . 440 72 519 55 . 318 237 75 871 1410 3086 952 2310 Core 3793 | . 95 . . 40 102 238 . 15 40 . 62 . 29 . 38 25 . 102 50 75 116 57 273 833 1603 Absorbed by Shields 1145 | . . . . . . . . . 38 38 66 . 222 . . . . . . . 169 532 80 . . Redirected to Shielding 274 | . . . . . . . . . . 18 13 . 49 . 28 . . . 71 . 95 . . . . Regen/Repaired (Parts) 1420 | . . . . . 81 . . 30 327 . . . . . . . . . 368 . 99 423 92 . . Core Remaining (%) 71 | 100 . . . 46 81 . . 63 . . . . 84 . . . . 83 . . 72 88 . 23 . Volleys Fired 401 | 6 26 . . 7 64 36 . 2 57 18 7 . 11 12 15 . . 5 9 . 5 68 26 . 27 Largest 3 | 2 2 . . 2 2 2 . 1 2 2 2 . 2 1 2 . . 1 1 . 3 2 2 . 2 Hottest 313 | 80 80 . . 90 130 130 . 65 78 84 84 . 84 33 102 . . 45 33 . 200 313 313 . 233 Shots Fired 560 | 12 52 . . 14 101 64 . 4 60 28 14 . 18 12 27 . . 5 9 . 12 71 29 . 28 Gun 79 | 12 52 . . 14 . . . . . . . . . . . . . . . . . . . . 1 Cannon 451 | . . . . . 101 56 . 3 58 28 14 . 16 12 27 . . . 9 . 12 70 20 . 25 Launcher 28 | . . . . . . 8 . 1 2 . . . 2 . . . . 5 . . . 1 9 . . Special 2 | . . . . . . . . . . . . . . . . . . . . . . . . . 2 Kinetic 233 | . . . . . 55 4 . . 58 28 14 . 16 12 27 . . . 9 . 10 . . . . Thermal 296 | 12 52 . . 14 46 52 . 3 . . . . . . . . . . . . 2 70 20 . 25 Explosive 28 | . . . . . . 8 . 1 2 . . . 2 . . . . 5 . . . 1 9 . . Electromagnetic 1 | . . . . . . . . . . . . . . . . . . . . . . . . . 1 Robot Hit Streak 28 | 6 13 . . 4 6 6 . 3 4 8 1 . 2 . 4 . . 4 . . 1 28 7 . 9 Robot Miss Streak 7 | 1 3 . . 2 4 3 . . 1 3 7 . 7 . 2 . . 5 . . 3 1 2 . 1 Penetration Max . | . . . . . . . . . . . . . . . . . . . . . . . . . . Secondary Targets 1 | . . . . 1 . . . . . . . . . . . . . . . . . . . . . Max Gunslinging Chain 1 | . . . . 1 . . . . . . . . . . . . . . . . . . . . . Shots Hit Robots 346 | 10 36 . . 9 45 34 . 14 22 13 2 . 5 10 16 . . 3 18 . 26 52 16 . 15 Core Hits 205 | 4 15 . . 5 23 17 . 9 14 5 3 . 9 2 4 . . 25 8 . 6 25 22 2 7 Critical Kills 10 | . . . . . . . . . . 1 1 . 1 . 1 . . . . . . 6 . . . Critical Parts Destroyed 15 | . . . . . . . . . . 3 . . 2 . 9 . . . . . 1 . . . . Critical Strikes 32 | . . . . . 2 . . 2 1 4 1 . 3 . 10 . . . . . 3 6 . . . Meltdown 6 | . . . . . . . . . . . . . . . . . . . . . . 6 . . . Destroy 19 | . . . . . . . . . . 4 1 . 3 . 10 . . . . . 1 . . . . Blast 3 | . . . . . 2 . . . 1 . . . . . . . . . . . . . . . . Sever 3 | . . . . . . . . 2 . . . . . . . . . . . . 1 . . . . Impale 1 | . . . . . . . . . . . . . . . . . . . . . 1 . . . . Melee Attacks 216 | . . . . . . . . 21 29 9 . . . 24 4 2 1 . 42 4 45 33 . 2 . Impact . | . . . . . . . . . . . . . . . . . . . . . . . . . . Slashing 199 | . . . . . . . . 21 29 9 . . . 24 4 2 1 . 41 3 30 33 . 2 . Piercing 17 | . . . . . . . . . . . . . . . . . . . 1 1 15 . . . . Sneak Attacks 37 | . . . . . . . . 9 4 . . . . 7 . . . . 9 . . 8 . . . Combat Hostiles . | . . . . . . . . . . . . . . . . . . . . . . . . . . Follow-up Attacks 7 | . . . . . . . . . . . . . . . . . . . . . 7 . . . . Damage Inflicted 20322 | 108 422 . . 102 1220 1574 . 903 1932 292 88 . 526 662 260 . . 919 1061 . 1333 5414 2465 16 1025 Guns 632 | 108 422 . . 102 . . . . . . . . . . . . . . . . . . . . . Cannons 8702 | . . . . . 1220 846 . 27 1046 292 88 . 238 . 260 . . . . . 32 3049 598 . 1006 Explosions 5449 | . . . . . . 728 . 94 205 . . . 288 . . . . 919 . . . 1348 1867 . . Melee 5471 | . . . . . . . . 782 681 . . . . 662 . . . . 1061 . 1301 984 . . . Ramming 68 | . . . . . . . . . . . . . . . . . . . . . . 33 . 16 19 Kinetic 2645 | . . . . . 652 37 . . 1046 292 88 . 238 . 260 . . . . . 32 . . . . Thermal 8123 | 108 422 . . 102 568 809 . 27 . . . . . . . . . . . . . 4331 750 . 1006 Explosive 3962 | . . . . . . 728 . 94 205 . . . 288 . . . . 919 . . . 66 1662 . . Electromagnetic 53 | . . . . . . . . . . . . . . . . . . . . . . . 53 . . Impact . | . . . . . . . . . . . . . . . . . . . . . . . . . . Slashing 4814 | . . . . . . . . 782 681 . . . . 662 . . . . 995 . 710 984 . . . Piercing 657 | . . . . . . . . . . . . . . . . . . . 66 . 591 . . . . Highest Corruption 16 | . . . . . 1 3 16 16 1 1 1 1 1 . 1 1 1 1 . . 12 8 8 10 9 Average Corruption 5 | . . . . . 1 2 7 16 1 1 1 1 1 . 1 1 1 1 . . 11 4 4 8 1 Corruption Purged 1 | . . . . . 1 . . . . . . . . . . . . . . . . . . . . Corruption Blocked . | . . . . . . . . . . . . . . . . . . . . . . . . . . Effects 115 | . . . . . . 14 3 33 1 4 2 2 2 . 3 . 3 1 . . 17 21 1 7 1 Message Errors 37 | . . . . . . 5 1 13 . 1 . . . . 1 . 1 . . . 4 7 1 2 1 Matter Fused 22 | . . . . . . 4 1 5 . . . . . . 1 . 2 1 . . 2 4 . 2 . Heat Flow Errors 14 | . . . . . . 2 . 7 . . . 1 . . 1 . . . . . 1 1 . 1 . Energy Discharges 13 | . . . . . . 1 . 2 . 2 1 1 . . . . . . . . 3 3 . . . Parts Fused 1 | . . . . . . . . . . . . . . . . . . . . . . 1 . . . Data Loss (minor) 12 | . . . . . . 1 1 3 . . 1 . 1 . . . . . . . 4 . . 1 . Data Loss (major) 7 | . . . . . . 1 . 1 . 1 . . . . . . . . . . 2 1 . 1 . Misfires 6 | . . . . . . . . 2 1 . . . . . . . . . . . 1 2 . . . Alerts 2 | . . . . . . . . . . . . . 1 . . . . . . . . 1 . . . Weapon Failures 1 | . . . . . . . . . . . . . . . . . . . . . . 1 . . . Overload Shots . | . . . . . . . . . . . . . . . . . . . . . . . . . . Overflow Damage 1992 | . . . . . . 64 . 115 115 4 . . 44 205 . . . 17 244 . 160 935 24 . 65 Projectiles 445 | . . . . . . 34 . . . 4 . . 14 . . . . . . . . 328 . . 65 Explosions 373 | . . . . . . 30 . . . . . . 30 . . . . 17 . . . 272 24 . . Melee 1174 | . . . . . . . . 115 115 . . . . 205 . . . . 244 . 160 335 . . . Knockbacks 14 | . . . . . 7 . . . . 2 . . 2 . 2 . . . . . 1 . . . . Impact . | . . . . . . . . . . . . . . . . . . . . . . . . . . Kinetic 14 | . . . . . 7 . . . . 2 . . 2 . 2 . . . . . 1 . . . . Secondary . | . . . . . . . . . . . . . . . . . . . . . . . . . . Self-Inflicted Damage 273 | . . . . . . 72 . 46 . . . . 41 . . . . 18 . . . . 80 7 9 Shots 7 | . . . . . . 2 . 1 . . . . 2 . . . . 1 . . . . 1 . . Rammed 11 | . . . . . . . . . . . . . . . . . . . . . . 4 . 5 2 Targets Rammed 11 | . . . . . . . . . . . . . . . . . . . . . . 4 . 5 2 Kicked . | . . . . . . . . . . . . . . . . . . . . . . . . . . Crushed . | . . . . . . . . . . . . . . . . . . . . . . . . . . Highest Temperature 398 | 36 327 . . 268 198 231 . 281 32 16 . 162 . 7 273 . . 18 6 . 398 162 48 58 15 Average Temperature 90 | 20 107 . . 172 67 71 . 109 16 10 . 86 . 5 114 . . 18 5 . 191 31 24 58 8 Received Heat Transfer 1242 | . 219 9 . 171 288 . . . 26 31 12 . 70 . . . . 76 36 . . 48 193 63 . Effects 3 | . . . . . . . . . . . . . . . 2 . . . . . 1 . . . . Shutdowns 1 | . . . . . . . . . . . . . . . . . . . . . 1 . . . . Interference 2 | . . . . . . . . . . . . . . . 2 . . . . . . . . . . Siege Activations 2 | . . . . . . . . . . . . . . . . . . . . . . 1 1 . . Total Turns 18 | . . . . . . . . . . . . . . . . . . . . . . 12 6 . . Longest Duration 12 | . . . . . . . . . . . . . . . . . . . . . . 12 6 . . Martial Activations . | . . . . . . . . . . . . . . . . . . . . . . . . . . Shielding Activations . | . . . . . . . . . . . . . . . . . . . . . . . . . . Robots Disrupted . | . . . . . . . . . . . . . . . . . . . . . . . . . . Combat Hostiles . | . . . . . . . . . . . . . . . . . . . . . . . . . . Robots Corrupted . | . . . . . . . . . . . . . . . . . . . . . . . . . . Combat Hostiles . | . . . . . . . . . . . . . . . . . . . . . . . . . . Parts Fried . | . . . . . . . . . . . . . . . . . . . . . . . . . . Impact Corruptions . | . . . . . . . . . . . . . . . . . . . . . . . . . . Robots Melted 7 | . . . . . . . . . . . . . . . . . . . . . . 7 . . . Combat Hostiles 5 | . . . . . . . . . . . . . . . . . . . . . . 5 . . . Parts Melted 22 | . 2 . . 2 2 . . . . . . . . . . . . . . . . 15 1 . . Heat Transferred 8103 | 250 950 . . 261 777 1110 . 37 . . . . . . . . . . . . . 3318 660 . 740 Parts Sabotaged 2 | . . . . . . . . . . . . . . . . . . . . . . . . 2 . Parts Stolen . | . . . . . . . . . . . . . . . . . . . . . . . . . . Parts Stripped . | . . . . . . . . . . . . . . . . . . . . . . . . . . Power Chain Reactions . | . . . . . . . . . . . . . . . . . . . . . . . . . . Alert | -11 -10 -10 -10 -9 -8 -7 -7 -7 -6 -6 -6 -6 -5 -5 -5 -5 -5 -4 -4 -4 -4 -3 -2 -2 -1 ------- Run | Yrd Mat Min Exi Min Mat Fac Was Fac Fac Low Low Dat Pro Fac Upp Upp Zhi Pro Fac Arm Lab Res Res Tes Acc Maximum Alert Level 5 | . . . . . . . . . . . . . . . . . . . . . . 2 2 5 4 Low Security (%) 86 | 100 100 100 . 100 100 100 100 100 100 . . . . 100 . . . . 100 100 . 71 23 . . Level 1 6 | . . . . . . . . . . . . . . . . . . . . . . 27 58 . . Level 2 . | . . . . . . . . . . . . . . . . . . . . . . . 18 . . Level 3 4 | . . . . . . . . . . . . . . . . . . . . . . . . . 89 Level 4 . | . . . . . . . . . . . . . . . . . . . . . . . . . 10 Level 5 . | . . . . . . . . . . . . . . . . . . . . . . . . . . High Security . | . . . . . . . . . . . . . . . . . . . . . . . . . . Max Security 1 | . . . . . . . . . . . . . . . . . . . . . . . . 99 . Peak Influence 1780 | 10 60 6 . 30 196 82 20 18 105 . . . . 189 . . . . 133 17 . 400 543 1780 1115 Initial 1100 | . . 6 . . . 71 20 . . . . . . 189 . . . . 128 . . . 209 270 1100 Average 138 | 1 28 . . 2 97 20 4 2 26 . . . . 138 . . . . 20 11 . 142 270 1664 1052 Influence Increases 4309 | 20 211 . . 50 539 257 . 124 286 60 85 . 390 171 30 15 . 275 147 19 . 791 492 180 167 Destroy 0b10 Robot/C 1660 | . 140 . . 40 220 120 . . 80 60 60 . 160 . 20 . . 240 . . . 300 160 . 60 Destroy 0b10 Robot/NC 295 | 20 10 . . . 25 15 . 50 25 . . . . 25 . . . . 40 . . 70 10 . 5 Destroy Leader 406 | . 30 . . 10 54 32 . 2 40 . 10 . 20 4 10 . . 20 4 . . 106 34 . 30 Successful Hack 211 | . 16 . . . 4 . . 57 36 . . . . 50 . . . . 34 . . 14 . . . Disable Machine 225 | . . . . . 45 75 . . 30 . . . . 15 . . . . . 15 . . 30 15 . Destroy Structure 687 | . . . . . 41 15 . 15 45 . . . . 32 . . . . 54 4 . 226 243 . 12 Partial Spotted 105 | . . . . . . . . . . . . . . 15 . . . . . . . 15 . 60 15 Lose Combat Pursuer 720 | . 15 . . . 150 . . . 30 . 15 . 210 30 . 15 . 15 15 . . 60 15 105 45 Influence Decreases 4697 | 20 194 17 . 50 381 357 58 123 236 111 55 30 90 375 126 10 5 70 352 10 9 418 384 221 995 Entered New Map 1509 | . . 11 . . . 87 38 . 1 20 . 30 . 111 36 . 5 . 77 . 9 . 164 211 709 Time Decay 2909 | 20 184 6 . 40 371 203 20 123 225 91 55 . 90 254 90 10 . 60 273 10 . 418 120 . 246 Lost Part 257 | . 10 . . 10 10 67 . . 10 . . . . . . . . 10 . . . . 100 10 30 Lost Ally 22 | . . . . . . . . . . . . . . 10 . . . . 2 . . . . . 10 Squads Dispatched 46 | . 2 . . . 1 1 . 3 2 . . . . 2 . . . 1 6 . . 13 1 7 7 Investigation 4 | . . . . . 1 . . . . . . . . 1 . . . . 2 . . . . . . Extermination 13 | . . . . . . 1 . 2 2 . . . . . . . . . 3 . . 4 . . 1 Reinforcement 12 | . 2 . . . . . . 1 . . . . . 1 . . . . 1 . . 4 1 . 2 Assault 11 | . . . . . . . . . . . . . . . . . . 1 . . . . . 7 3 Garrison 3 | . . . . . . . . . . . . . . . . . . . . . . 3 . . . Intercept 3 | . . . . . . . . . . . . . . . . . . . . . . 2 . . 1 Searches Triggered . | . . . . . . . . . . . . . . . . . . . . . . . . . . Construction Impeded 2 | . . . . . . . . . . . . . . . . . . . . . . 2 . . . Haulers Reinforced 2 | . . . . . . . . 1 . . . . . . . . . . . . . . . . 1 Active Scanning Responses . | . . . . . . . . . . . . . . . . . . . . . . . . . . Cargo Convoy Interrupts . | . . . . . . . . . . . . . . . . . . . . . . . . . . Stealth | -11 -10 -10 -10 -9 -8 -7 -7 -7 -6 -6 -6 -6 -5 -5 -5 -5 -5 -4 -4 -4 -4 -3 -2 -2 -1 --------- Run | Yrd Mat Min Exi Min Mat Fac Was Fac Fac Low Low Dat Pro Fac Upp Upp Zhi Pro Fac Arm Lab Res Res Tes Acc Distress Signals 17 | . 1 . . . 5 . . . 1 . . . . 2 . . . . 1 . . 2 1 2 2 Communications Jammed 19 | . . . . . . . . . . . . . . . . . . . . . . 19 . . . Distress Signals 19 | . . . . . . . . . . . . . . . . . . . . . . 19 . . . Times Spotted 252 | . 17 2 . 2 28 10 6 6 12 3 4 . 24 9 3 1 . 24 11 . 1 25 13 36 15 Peak Tracking Total 27 | . 4 2 . 2 8 4 6 1 2 3 3 . 9 3 2 1 . 12 4 1 1 8 7 27 7 Tactical Retreats 37 | . 1 . . . 6 . . . 2 . 1 . 7 4 . 1 . 1 2 . . 5 1 3 3 ECM-based Alert Blocks 15 | . . . . . . . . . . . . . 3 3 . . . . 3 . . 6 . . . Traps | -11 -10 -10 -10 -9 -8 -7 -7 -7 -6 -6 -6 -6 -5 -5 -5 -5 -5 -4 -4 -4 -4 -3 -2 -2 -1 ------- Run | Yrd Mat Min Exi Min Mat Fac Was Fac Fac Low Low Dat Pro Fac Upp Upp Zhi Pro Fac Arm Lab Res Res Tes Acc Traps Triggered 8 | . . . . . 1 3 . . . . . . . . . . . . . . . 2 . 2 . Indirectly . | . . . . . . . . . . . . . . . . . . . . . . . . . . Trap Hack Attempts . | . . . . . . . . . . . . . . . . . . . . . . . . . . Triggered . | . . . . . . . . . . . . . . . . . . . . . . . . . . Disarmed . | . . . . . . . . . . . . . . . . . . . . . . . . . . Reprogrammed . | . . . . . . . . . . . . . . . . . . . . . . . . . . Reused . | . . . . . . . . . . . . . . . . . . . . . . . . . . Traps Extracted . | . . . . . . . . . . . . . . . . . . . . . . . . . . Installed . | . . . . . . . . . . . . . . . . . . . . . . . . . . Triggered . | . . . . . . . . . . . . . . . . . . . . . . . . . . Machines | -11 -10 -10 -10 -9 -8 -7 -7 -7 -6 -6 -6 -6 -5 -5 -5 -5 -5 -4 -4 -4 -4 -3 -2 -2 -1 ---------- Run | Yrd Mat Min Exi Min Mat Fac Was Fac Fac Low Low Dat Pro Fac Upp Upp Zhi Pro Fac Arm Lab Res Res Tes Acc Machines Disabled 17 | . . . . . 3 5 . . 2 . . . . 1 . . . . . 1 2 . 2 1 . Max in Single Turn 1 | . . . . . 1 1 . . 1 . . . . 1 . . . . . 1 1 . 1 1 . Garrison Access 3 | . . . . . . . . . . . . . . 1 . . . . . . . 1 1 . . Machines Repaired . | . . . . . . . . . . . . . . . . . . . . . . . . . . Machines Dismantled . | . . . . . . . . . . . . . . . . . . . . . . . . . . Machines Sabotaged . | . . . . . . . . . . . . . . . . . . . . . . . . . . Overloaded Fab Kills . | . . . . . . . . . . . . . . . . . . . . . . . . . . Hacking | -11 -10 -10 -10 -9 -8 -7 -7 -7 -6 -6 -6 -6 -5 -5 -5 -5 -5 -4 -4 -4 -4 -3 -2 -2 -1 --------- Run | Yrd Mat Min Exi Min Mat Fac Was Fac Fac Low Low Dat Pro Fac Upp Upp Zhi Pro Fac Arm Lab Res Res Tes Acc Machines Accessed 68 | . 3 . 3 . 6 . . 10 4 . 1 4 . 9 1 . 6 . 12 . 2 4 1 . 2 Terminals 29 | . 2 . . . 5 . . 8 1 . . . . 6 . . . . 5 . . 2 . . . Fabricators 5 | . . . . . . . . 1 . . . . . 1 . . . . 3 . . . . . . Repair Stations 8 | . 1 . . . 1 . . 1 1 . . . . . . . . . 4 . . . . . . Recycling Units 2 | . . . . . . . . . 1 . . . . . . . . . . . . 1 . . . Scanalyzers 2 | . . . . . . . . . 1 . . . . 1 . . . . . . . . . . . Garrison Access 5 | . . . . . . . . . . . . . . 1 . . . . . . . 1 1 . 2 Total Hacks 230 | . 9 . 13 . 16 . . 30 15 . 1 31 . 27 1 . 19 . 39 . 5 15 5 . 4 Successful 164 | . 6 . 13 . 4 . . 13 13 . 1 31 . 16 1 . 19 . 32 . 5 9 1 . . Failed 65 | . 3 . . . 12 . . 17 1 . . . . 11 . . . . 7 . . 6 4 . 4 Catastrophic 11 | . . . . . 3 . . 3 . . . . . 2 . . . . . . . 2 . . 1 Database Lockouts 1 | . . . . . . . . . 1 . . . . . . . . . . . . . . . . Manual 67 | . . . 2 . 10 . . 14 . . . . . 17 . . . . 13 . 3 8 . . . Terminals 97 | . 7 . . . 13 . . 22 4 . . . . 20 . . . . 22 . . 9 . . . Fabricators 11 | . . . . . . . . 3 . . . . . 2 . . . . 6 . . . . . . Repair Stations 25 | . 2 . . . 3 . . 5 4 . . . . . . . . . 11 . . . . . . Recycling Units 6 | . . . . . . . . . 1 . . . . . . . . . . . . 5 . . . Scanalyzers 9 | . . . . . . . . . 6 . . . . 3 . . . . . . . . . . . Garrison Access 12 | . . . . . . . . . . . . . . 2 . . . . . . . 1 5 . 4 Terminal Hacks 109 | . 5 . 13 . 2 . . 5 3 . 1 31 . 9 1 . 19 . 13 . 5 2 . . . Record 35 | . . . 12 . 1 . . . . . . 11 . . . . 7 . . . 4 . . . . Part Schematic 18 | . . . . . . . . 1 . . . 12 . . . . 4 . 1 . . . . . . Robot Schematic 5 | . . . . . . . . . . . . 5 . . . . . . . . . . . . . Robot Analysis 4 | . . . . . . . . . . . . . . . . . 4 . . . . . . . . Prototype ID Bank 8 | . . . . . . . . . 1 . . 3 . . . . 4 . . . . . . . . Open Door 2 | . . . . . . . . . . . 1 . . . 1 . . . . . . . . . . Open DSF 1 | . . . . . . . . 1 . . . . . . . . . . . . . . . . . Level Access Points 4 | . . . . . . . . 1 1 . . . . 1 . . . . 1 . . . . . . Branch Access Points 6 | . 1 . . . . . . 1 1 . . . . 1 . . . . 1 . . 1 . . . Machine Index 1 | . . . . . . . . . . . . . . . . . . . 1 . . . . . . Terminal Index 5 | . . . . . 1 . . 1 . . . . . 1 . . . . 1 . . 1 . . . Fabricator Index 1 | . . . . . . . . . . . . . . 1 . . . . . . . . . . . Repair Station Index 1 | . . . . . . . . . . . . . . 1 . . . . . . . . . . . Maintenance Status 3 | . 1 . . . . . . . . . . . . 1 . . . . 1 . . . . . . Patrol Status 3 | . 1 . . . . . . . . . . . . 1 . . . . 1 . . . . . . Transport Status 1 | . 1 . . . . . . . . . . . . . . . . . . . . . . . . Recall Investigation 3 | . . . . . . . . . . . . . . 1 . . . . 2 . . . . . . Recall Extermination 3 | . . . . . . . . . . . . . . . . . . . 3 . . . . . . Hauler Manifests 1 | . 1 . . . . . . . . . . . . . . . . . . . . . . . . Zone Layout 2 | . . . . . . . . . . . . . . 1 . . . . 1 . . . . . . Proto ID Catalog 1 | . . . 1 . . . . . . . . . . . . . . . . . . . . . . Release Object 1 | . . . . . . . . . . . . . . . . . . . . . 1 . . . . Fabricator Hacks 8 | . . . . . . . . 1 . . . . . 2 . . . . 5 . . . . . . Load Schematic 4 | . . . . . . . . 1 . . . . . 1 . . . . 2 . . . . . . Build 4 | . . . . . . . . . . . . . . 1 . . . . 3 . . . . . . Repair Station Hacks 20 | . 1 . . . 2 . . 2 4 . . . . . . . . . 11 . . . . . . Scan Component 10 | . 1 . . . 1 . . 1 2 . . . . . . . . . 5 . . . . . . Repair 9 | . . . . . 1 . . 1 2 . . . . . . . . . 5 . . . . . . Refit 1 | . . . . . . . . . . . . . . . . . . . 1 . . . . . . Recycling Unit Hacks 3 | . . . . . . . . . 1 . . . . . . . . . . . . 2 . . . Retrieve Matter 1 | . . . . . . . . . . . . . . . . . . . . . . 1 . . . Retrieve Components 2 | . . . . . . . . . 1 . . . . . . . . . . . . 1 . . . Scanalyzer 6 | . . . . . . . . . 5 . . . . 1 . . . . . . . . . . . Insert Component 2 | . . . . . . . . . 1 . . . . 1 . . . . . . . . . . . Analyze 1 | . . . . . . . . . 1 . . . . . . . . . . . . . . . . Retrieve Study 3 | . . . . . . . . . 3 . . . . . . . . . . . . . . . . Garrison Access Hacks 3 | . . . . . . . . . . . . . . 1 . . . . . . . 1 1 . . Seal Access 3 | . . . . . . . . . . . . . . 1 . . . . . . . 1 1 . . Unauthorized Hacks 14 | . . . . . . . . 5 . . . . . 3 . . . . 3 . . 3 . . . Terminals 12 | . . . . . . . . 5 . . . . . 3 . . . . 3 . . 1 . . . Assimilate 5 | . . . . . . . . 2 . . . . . 2 . . . . 1 . . . . . . Botnet 6 | . . . . . . . . 2 . . . . . 1 . . . . 2 . . 1 . . . Skim 1 | . . . . . . . . 1 . . . . . . . . . . . . . . . . . Fabricators . | . . . . . . . . . . . . . . . . . . . . . . . . . . Repair Stations . | . . . . . . . . . . . . . . . . . . . . . . . . . . Recycling Units 2 | . . . . . . . . . . . . . . . . . . . . . . 2 . . . Recyclers 1 | . . . . . . . . . . . . . . . . . . . . . . 1 . . . Mask 1 | . . . . . . . . . . . . . . . . . . . . . . 1 . . . Scanalyzers . | . . . . . . . . . . . . . . . . . . . . . . . . . . Garrison Access . | . . . . . . . . . . . . . . . . . . . . . . . . . . Data Cores Recovered 2 | . . . . . . . . 1 . . . . . . . . . . . . . 1 . . . Used 2 | . . . . . . . . 1 . . . . . . . . . . . . . 1 . . . Hacking Detections 39 | . 3 . . . 5 . . 8 4 . . . . 6 . . . . 8 . . 2 1 . 2 Full Trace Events 4 | . . . . . 1 . . . . . . . . 1 . . . . 2 . . . . . . Feedback Events . | . . . . . . . . . . . . . . . . . . . . . . . . . . Feedback Blocked . | . . . . . . . . . . . . . . . . . . . . . . . . . . Robot Schematics Acquired 5 | . . . . . . . . . . . . 5 . . . . . . . . . . . . . Robots Built . | . . . . . . . . . . . . . . . . . . . . . . . . . . Authchips . | . . . . . . . . . . . . . . . . . . . . . . . . . . Time . | . . . . . . . . . . . . . . . . . . . . . . . . . . Total Robot Build Rating . | . . . . . . . . . . . . . . . . . . . . . . . . . . Part Schematics Acquired 19 | . . . . . . . . 1 1 . . 12 . . . . 4 . 1 . . . . . . Parts Built 6 | . . . . . . . . . . . . . . 2 . . . . 4 . . . . . . Authchips . | . . . . . . . . . . . . . . . . . . . . . . . . . . Time 335 | . . . . . . . . . . . . . . 106 . . . . 229 . . . . . . Total Part Build Rating 41 | . . . . . . . . . . . . . . 12 . . . . 29 . . . . . . Part Studies Acquired 2 | . . . . . . . . . 2 . . . . . . . . . . . . . . . . Parts Repaired 9 | . . . . . 1 . . 1 2 . . . . . . . . . 5 . . . . . . Time 534 | . . . . . 44 . . 86 136 . . . . . . . . . 268 . . . . . . Parts Recycled . | . . . . . . . . . . . . . . . . . . . . . . . . . . Recycled Matter . | . . . . . . . . . . . . . . . . . . . . . . . . . . Retrieved Matter 85 | . . . . . . . . . . . . . . . . . . . . . . 85 . . . Retrieved Components 12 | . . . . . . . . . 3 . . . . . . . . . . . . 9 . . . Parts Scanalyzed 2 | . . . . . . . . . 1 . . . . 1 . . . . . . . . . . . Part Schematics Acquired 1 | . . . . . . . . . 1 . . . . . . . . . . . . . . . . Parts Damaged . | . . . . . . . . . . . . . . . . . . . . . . . . . . Bothacking | -11 -10 -10 -10 -9 -8 -7 -7 -7 -6 -6 -6 -6 -5 -5 -5 -5 -5 -4 -4 -4 -4 -3 -2 -2 -1 ------------ Run | Yrd Mat Min Exi Min Mat Fac Was Fac Fac Low Low Dat Pro Fac Upp Upp Zhi Pro Fac Arm Lab Res Res Tes Acc Used RIF Installer . | . . . . . . . . . . . . . . . . . . . . . . . . . . Robots Hacked 2 | . . . . . . . . . . . . . . . . . . . . . . . . . 2 Non-combat 2 | . . . . . . . . . . . . . . . . . . . . . . . . . 2 Combat . | . . . . . . . . . . . . . . . . . . . . . . . . . . Robot Hacks Applied 2 | . . . . . . . . . . . . . . . . . . . . . . . . . 2 find_fabricator 1 | . . . . . . . . . . . . . . . . . . . . . . . . . 1 find_recycling 1 | . . . . . . . . . . . . . . . . . . . . . . . . . 1 Relay Couplers Released . | . . . . . . . . . . . . . . . . . . . . . . . . . . Fabnet Peak Effective % . | . . . . . . . . . . . . . . . . . . . . . . . . . . Robots Rewired . | . . . . . . . . . . . . . . . . . . . . . . . . . . Allies Hacked 1 | . . . . . . . . 1 . . . . . . . . . . . . . . . . . Hacks Repelled . | . . . . . . . . . . . . . . . . . . . . . . . . . . Allies | -11 -10 -10 -10 -9 -8 -7 -7 -7 -6 -6 -6 -6 -5 -5 -5 -5 -5 -4 -4 -4 -4 -3 -2 -2 -1 -------- Run | Yrd Mat Min Exi Min Mat Fac Was Fac Fac Low Low Dat Pro Fac Upp Upp Zhi Pro Fac Arm Lab Res Res Tes Acc Total Allies 5 | . . . . . . . 1 2 . . . . . 1 . . . . 1 . . . . . . Largest Group 1 | . . . . . . . 1 1 . . . . . 1 . . . . 1 . . . . . . Highest-Rated Group 31 | . . . . . . . 31 26 . . . . . 26 . . . . 10 . . . . . . Highest-Rated Ally 31 | . . . . . . . 31 26 . . . . . 26 . . . . 10 . . . . . . Total Orders 11 | . . . . . . . . . 2 . . . . . . . . . 8 . . . . . 1 STAY 1 | . . . . . . . . . . . . . . . . . . . 1 . . . . . . EXPLORE 8 | . . . . . . . . . 2 . . . . . . . . . 5 . . . . . 1 RETURN 2 | . . . . . . . . . . . . . . . . . . . 2 . . . . . . Ally Attacks 3 | . . . . . . . 3 . . . . . . . . . . . . . . . . . . Total Damage 43 | . . . . . . . 43 . . . . . . . . . . . . . . . . . . Kills . | . . . . . . . . . . . . . . . . . . . . . . . . . . Allies Corrupted . | . . . . . . . . . . . . . . . . . . . . . . . . . . Allies Melted . | . . . . . . . . . . . . . . . . . . . . . . . . . . Intel | -11 -10 -10 -10 -9 -8 -7 -7 -7 -6 -6 -6 -6 -5 -5 -5 -5 -5 -4 -4 -4 -4 -3 -2 -2 -1 ------- Run | Yrd Mat Min Exi Min Mat Fac Was Fac Fac Low Low Dat Pro Fac Upp Upp Zhi Pro Fac Arm Lab Res Res Tes Acc Active Infowar (turns) 6131 | 35 450 189 1177 461 480 . . . 18 . 17 . 13 56 . 31 38 . 1019 29 358 1467 243 50 . Sensors 56 | . . . . . . . . . . . . . . . . 18 38 . . . . . . . . Structural 2350 | . . . . . . . . . . . . . . . . . . . 483 15 358 1201 243 50 . Seismic 2792 | 35 450 189 1177 461 480 . . . . . . . . . . . . . . . . . . . . Jamming 2158 | . . . . . . . . . . . . . . . . . . . 1019 29 22 1088 . . . ECM 312 | . . . . . . . . . 18 . 17 . 13 56 . 13 . . 107 . . 88 . . . Robot Analysis Total 4 | . . . . . . . . . . . . . . . . . 4 . . . . . . . . Derelict Logs Recovered 6 | . . . . 1 . . . . . 1 . . 2 . 1 1 . . . . . . . . . Drone Launches 7 | . . . . . . . . . 2 . . . . . . . . . 4 . . . . . 1 Drone Recoveries 2 | . . . . . . . . . . . . . . . . . . . 2 . . . . . . Exploration | -11 -10 -10 -10 -9 -8 -7 -7 -7 -6 -6 -6 -6 -5 -5 -5 -5 -5 -4 -4 -4 -4 -3 -2 -2 -1 ------------- Run | Yrd Mat Min Exi Min Mat Fac Was Fac Fac Low Low Dat Pro Fac Upp Upp Zhi Pro Fac Arm Lab Res Res Tes Acc Turns Passed 13475 | 130 450 189 1177 461 1233 912 117 799 1155 376 250 54 265 555 226 132 84 125 1529 29 540 1761 243 144 539 Spaces Moved 13771 | 62 189 155 975 303 685 616 186 1169 1136 577 414 108 453 979 379 390 169 271 1839 30 468 1119 96 228 775 Core 440 | 7 . . . . . . . . 1 . . . . . . . . . . . . . . 126 306 Treads 575 | 55 136 . . . . . . . . . . . . . . . . . . . . 261 96 27 . Legs 2756 | . 53 155 975 303 685 585 . . . . . . . . . . . . . . . . . . . Wheels 87 | . . . . . . 31 1 . . . . . . . . . . . . . . 55 . . . Hover 3980 | . . . . . . . . . . . . . . . . . 100 271 1839 30 468 803 . . 469 Flight 5933 | . . . . . . . 185 1169 1135 577 414 108 453 979 379 390 69 . . . . . . 75 . Fastest Speed 16 | 50 120 120 120 120 120 120 50 50 50 50 50 50 50 26 24 30 30 30 16 30 16 86 156 30 44 Average Speed 68 | 153 149 120 120 120 120 123 50 50 50 50 50 50 50 33 33 30 38 39 34 30 77 118 177 55 49 Slowest Speed 850 | 160 190 120 120 120 120 190 145 50 850 150 50 50 50 50 34 30 150 42 42 30 88 385 180 156 200 Overloaded Moves 109 | . . . . . . . . . . . . . . 13 12 . . 53 20 . 11 . . . . Propulsion Burnouts . | . . . . . . . . . . . . . . . . . . . . . . . . . . Robots Hopped 13 | . . . . . . . . . 4 . . . . 5 1 . . . . . . . . 3 . Potential Cave-ins 2 | . . . . . 2 . . . . . . . . . . . . . . . . . . . . Cave-ins Triggered 1 | . . . . . . 1 . . . . . . . . . . . . . . . . . . . Teleports 2 | . . . . . . . . . . . . . . . . . . . . 1 . 1 . . . Exploration Rate (%) 44 | 4 39 44 93 54 46 14 97 33 16 65 58 75 64 20 40 60 62 55 27 2 99 27 6 42 21 Regions Visited 25 Branch Regions 14 Pre-discovered Areas 5 | . . . . . . . . . . . . 1 1 . . . 3 . . . . . . . . Known Exits Taken 9 | . 1 . . . . . . 1 1 . . . 1 1 . . . 1 1 . 1 . 1 . . Unknown Exits Taken 14 | 1 . 1 1 1 1 . . . . 1 1 1 . . 1 1 1 . . 1 . 1 . 1 . Scrap Searched 13 | . . . . 3 . . . . . 6 . . . . 2 1 . 1 . . . . . . . Spaces Dug 174 | . . . . . 16 . . 7 25 15 . . . 24 7 2 1 . 32 2 . 37 2 . 4 Terrain Destroyed 666 | . . . . . 42 12 . 14 49 22 5 . 60 25 7 2 1 119 32 2 9 112 149 . 4 Melee 94 | . . . . . . . . 6 14 9 . . . 13 4 2 1 . 23 2 . 20 . . . Projectile 156 | . . . . . 42 7 . 1 25 13 5 . 4 12 3 . . . 9 . 2 21 8 . 4 AOE 416 | . . . . . . 5 . 7 10 . . . 56 . . . . 119 . . 7 71 141 . . Terrain Rammed . | . . . . . . . . . . . . . . . . . . . . . . . . . . Walls Destroyed . | . . . . . . . . . . . . . . . . . . . . . . . . . . Machines Disabled . | . . . . . . . . . . . . . . . . . . . . . . . . . . Actions | -11 -10 -10 -10 -9 -8 -7 -7 -7 -6 -6 -6 -6 -5 -5 -5 -5 -5 -4 -4 -4 -4 -3 -2 -2 -1 --------- Run | Yrd Mat Min Exi Min Mat Fac Was Fac Fac Low Low Dat Pro Fac Upp Upp Zhi Pro Fac Arm Lab Res Res Tes Acc Total 16867 | 82 304 158 985 387 996 706 216 1352 1616 621 440 107 468 1149 441 400 188 278 2663 43 567 1423 136 237 904 Wait 1937 | 3 77 1 2 64 186 18 3 133 358 9 16 . . 120 30 6 . . 715 . 12 107 7 1 69 Move 13722 | 61 188 154 974 302 684 616 185 1168 1127 576 413 107 452 968 376 389 168 270 1838 29 467 1118 95 222 775 Hop 12 | . . . . . . . . . 4 . . . . 5 1 . . . . . . . . 2 . Pick Up 120 | 4 6 2 3 2 18 10 5 8 11 2 . . . 6 . 1 3 1 10 1 9 13 . . 5 Fast Attach 108 | 7 2 . . 1 7 2 3 4 8 1 . . . 1 2 1 6 . 17 3 12 13 1 2 15 Attach 60 | . 1 . . 2 2 9 5 1 5 1 . . . 2 2 1 1 1 8 1 2 3 4 2 7 Detach 18 | . . . . . 2 2 . 1 1 . . . . . 3 . . . 4 1 . . 1 1 2 Swap 94 | . 2 . . 5 17 7 . 3 3 2 4 . 5 4 6 . . . 4 2 7 22 1 . . Drop 164 | 1 2 1 6 4 16 6 15 11 13 3 . . . 7 2 . 9 1 16 3 16 29 1 . 2 Fire 401 | 6 26 . . 7 64 36 . 2 57 18 7 . 11 12 15 . . 5 9 . 5 68 26 . 27 Melee 207 | . . . . . . . . 21 29 9 . . . 24 4 2 1 . 42 3 37 33 . 2 . Ram 7 | . . . . . . . . . . . . . . . . . . . . . . . . 5 2 Kick . | . . . . . . . . . . . . . . . . . . . . . . . . . . Crush 4 | . . . . . . . . . . . . . . . . . . . . . . 4 . . . Escape Stasis 13 | . . . . . . . . . . . . . . . . . . . . . . 13 . . . Rewire . | . . . . . . . . . . . . . . . . . . . . . . . . . . Trap . | . . . . . . . . . . . . . . . . . . . . . . . . . . Miscellaneous . | . . . . . . . . . . . . . . . . . . . . . . . . . . Route ------- -11/Scrapyard -10/Materials (discovered 2 exits: *Min x2) -10/Mines -10/Exiles (discovered 2 exits: [*Min x2]) -9/Mines (discovered 2 exits: *Mat x2) -8/Materials -7/Factory -7/Waste -7/Factory (discovered 6 exits: *Fac x4 / *Low x2) -6/Factory (discovered 6 exits: Fac x4 / *Low x2) -6/Lower Caves -6/Lower Caves (discovered 2 exits: *Fac / *Dat) -6/Data Miner -5/Proximity Caves -5/Factory (discovered 6 exits: Fac x4 / *Upp x2) -5/Upper Caves -5/Upper Caves -5/Zhirov -4/Proximity Caves -4/Factory (discovered 9 exits: Res x4 / Upp x2 / *Ext x2 / *Arm) -4/Armory -4/Lab -3/Research (discovered 3 exits: *Res / Qua x2) -2/Research -2/Testing -1/Access History --------- Turn | Location | Event 25 | -11/Scrapyard | Discovered new exit (range 15) 131 | -11/Scrapyard | Entered Materials 303 | -10/Materials | Build established: Mutant 404 | -10/Materials | Identified exit to Mines 581 | -10/Materials | Entered Mines 582 | -10/Mines | Assembled infested the area 587 | -10/Mines | Assisted by a Guerilla fighting off Assembled 763 | -10/Mines | Deemed a non-threat by the Exiles lab entrance 764 | -10/Mines | Discovered new exit (range 5) 770 | -10/Mines | Entered Exiles 793 | -10/Exiles | Discovered new exit (range 15) 808 | -10/Exiles | Met 8R-AWN 822 | -10/Exiles | Met EX-HEX 907 | -10/Exiles | Met EX-DEC 955 | -10/Exiles | Visited The Gauntlet 1200 | -10/Exiles | Met EX-BIN 1386 | -10/Exiles | Discovered new exit (range 14) 1565 | -10/Exiles | Aligned with FarCom system 1566 | -10/Exiles | Given EX-Vault access code 1595 | -10/Exiles | Opened EX-Vault 1653 | -10/Exiles | Found Flying Fortress v7 1681 | -10/Exiles | Warned to stay clear of 0b10 Research branches 1947 | -10/Exiles | Left Exiles lab with Flying Fortress v7 1947 | -10/Exiles | Entered Mines 1954 | -9/Mines | Core integrity fell below 50% 2002 | -9/Mines | Lost 3 parts (1p2w) 2083 | -9/Mines | Discovered new exit (range 11) 2153 | -9/Mines | Discovered new exit (range 12) 2244 | -9/Mines | Build established: Scavenger-Mutant 2281 | -9/Mines | Learned Materials emergency access door positions 2408 | -9/Mines | Entered Materials 2408 | -8/Materials | Evolved 4 slots: Propulsion x2, Utility x2 3088 | -8/Materials | Build established: Mutant 3504 | -8/Materials | Discovered new exit (range 15) 3573 | -8/Materials | Repaired Imp. Carbon-fiber Leg 3641 | -8/Materials | Entered Factory 3641 | -7/Factory | Evolved 2 slots: Utility x2 4188 | -7/Factory | Assembled infested ambush trap array 4347 | -7/Factory | Crushed by falling debris 4378 | -7/Factory | Lost 5 parts (2n1u2w) 4493 | -7/Factory | Lost 4 parts (1p1n2u) 4553 | -7/Factory | Sucked down chute 4553 | -7/Factory | Entered Waste 4554 | -7/Waste | Met a frightened Derelict 4568 | -7/Waste | EMP discharged 4569 | -7/Waste | Spotted C-40 Crusher 4590 | -7/Waste | Spotted C-40 Crusher 4606 | -7/Waste | Spotted C-40 Crusher 4612 | -7/Waste | Spotted C-40 Crusher 4615 | -7/Waste | Spotted C-40 Crusher 4622 | -7/Waste | Spotted C-40 Crusher 4658 | -7/Waste | Discovered new exit (range 13) 4668 | -7/Waste | EMP discharged 4668 | -7/Waste | System corruption reached 10% 4670 | -7/Waste | Entered Factory 4677 | -7/Factory | Discovered new exit (range 15) 4728 | -7/Factory | Identified exit to Lower Caves 5076 | -7/Factory | Build established: Hacker-Mutant 5160 | -7/Factory | Repaired Corrupted Imp. Force Field 5220 | -7/Factory | Found Prototype Launcher 5220 | -7/Factory | Identified Rocket Array 5231 | -7/Factory | Identified exit to Factory 5469 | -7/Factory | Entered another Factory area 5469 | -6/Factory | Evolved 2 slots: Utility x2 5473 | -6/Factory | Central database locked down 5592 | -6/Factory | Identified exit to Factory 5592 | -6/Factory | Identified exit to Lower Caves 5858 | -6/Factory | Destroyed B-75 Beast 6494 | -6/Factory | Repaired Hyp. Gauss Cannon 6575 | -6/Factory | Repaired Antimatter Cannon 6624 | -6/Factory | Entered Lower Caves 6700 | -6/Lower Caves | Spotted B-75 Beast 6712 | -6/Lower Caves | Learned 4 Factory zone layouts 6872 | -6/Lower Caves | Attracted the attention of an 0b10 checkpoint 6972 | -6/Lower Caves | Discovered new exit (range 6) 7000 | -6/Lower Caves | Entered another Lower Caves area 7007 | -6/Lower Caves | Discovered exit to Factory (range 10) 7074 | -6/Lower Caves | Spotted B-75 Beast 7223 | -6/Lower Caves | Discovered new exit (range 15) 7250 | -6/Lower Caves | Entered Data Miner 7250 | -6/Data Miner | Discovered new exit (range 6) 7260 | -6/Data Miner | Met Data Miner 7279 | -6/Data Miner | Learned location of Section 7 (-3) 7279 | -6/Data Miner | Acquired the access code to Warlord's prototype stash 7289 | -6/Data Miner | Received God Mode back door access code from Data Miner 7304 | -6/Data Miner | Entered Proximity Caves 7311 | -5/Proximity Caves | Spotted B-75 Beast 7400 | -5/Proximity Caves | Learned Factory stockpile data 7503 | -5/Proximity Caves | Learned location of Armory (-4) 7564 | -5/Proximity Caves | Discovered exit to Factory (range 4) 7569 | -5/Proximity Caves | Entered Factory 7569 | -5/Factory | Evolved 2 slots: Propulsion x2 7665 | -5/Factory | Discovered new exit (range 14) 7756 | -5/Factory | Identified exit to Upper Caves 7756 | -5/Factory | Identified exit to Factory 7857 | -5/Factory | Fabricated Hyp. Gauss Cannon? 8033 | -5/Factory | Spotted B-75 Beast 8124 | -5/Factory | Entered Upper Caves 8226 | -5/Upper Caves | Encountered a Warlord checkpoint 8348 | -5/Upper Caves | Learned Factory trap positions 8349 | -5/Upper Caves | Discovered new exit (range 5) 8350 | -5/Upper Caves | Entered another Upper Caves area 8376 | -5/Upper Caves | Learned Factory trap positions 8379 | -5/Upper Caves | Spotted B-75 Beast 8459 | -5/Upper Caves | Encountered a Warlord checkpoint 8477 | -5/Upper Caves | Discovered new exit (range 10) 8482 | -5/Upper Caves | Entered Zhirov 8482 | -5/Zhirov | Discovered new exit (range 3) 8490 | -5/Zhirov | Met Zhirov 8502 | -5/Zhirov | Found Alien Artifact 8531 | -5/Zhirov | Found Alien Artifact 8531 | -5/Zhirov | Identified Integrated Reactor 8531 | -5/Zhirov | Installed Integrated Reactor, increased core energy generation (+10) 8550 | -5/Zhirov | Learned location of Quarantine (-3) 8550 | -5/Zhirov | Learned location of Testing (-2) 8550 | -5/Zhirov | Learned location of Command (-1) 8555 | -5/Zhirov | Zhirov requested help retrieving the SGEMP Prototype 8566 | -5/Zhirov | Entered Proximity Caves 8600 | -4/Proximity Caves | Spotted B-86 Titan 8676 | -4/Proximity Caves | Attracted the attention of an 0b10 outpost 8688 | -4/Proximity Caves | Discovered exit to Factory (range 10) 8691 | -4/Proximity Caves | Entered Factory 8691 | -4/Factory | Evolved 2 slots: Power x1, Weapon x1 8692 | -4/Factory | Loaded intel: 111 trap records 8715 | -4/Factory | Watched by a mysterious "MATRIX" hacker. 8759 | -4/Factory | Repaired Cld. Gravmag System 8801 | -4/Factory | Identified exit to Upper Caves 8801 | -4/Factory | Identified exit to Extension 8801 | -4/Factory | Identified exit to Armory 8801 | -4/Factory | Identified exit to Research 8842 | -4/Factory | Repaired Rocket Array? 8876 | -4/Factory | Repaired Cld. Gravmag System 8936 | -4/Factory | Repaired Cld. Gravmag System? 9011 | -4/Factory | Repaired Hyp. Gauss Cannon? 9678 | -4/Factory | Fabricated Exp. Propulsion Shielding? 9750 | -4/Factory | Fabricated Quantum Reactor? 9859 | -4/Factory | Fabricated Cld. Gravmag System? 10220 | -4/Factory | Entered Armory 10241 | -4/Armory | Identified Transdimensional Reconstructor 10241 | -4/Armory | Warped through subspace to slip node 10241 | -4/Armory | Discovered new exit (range 1) 10249 | -4/Armory | Entered Lab 10249 | -4/Lab | Discovered exit to Research (range 10) 10254 | -4/Lab | Unable to decrypt terminal 10254 | -4/Lab | Opened the door to a hidden lab 10254 | -4/Lab | Detected by scanners 10255 | -4/Lab | Gained access to the hidden lab's interior 10255 | -4/Lab | Unable to decrypt terminal 10268 | -4/Lab | Confronted by A5 10308 | -4/Lab | Build established: Hacker-Sprinter 10319 | -4/Lab | System corruption reached 10% 10329 | -4/Lab | Found Prototype Protection 10329 | -4/Lab | Identified Med. Regenerative Plating 10363 | -4/Lab | Destroyed A5 10376 | -4/Lab | Found Prototype Hackware 10376 | -4/Lab | Identified Exp. Hacking Suite 10418 | -4/Lab | Found Alien Artifact 10418 | -4/Lab | Identified Core Expander 10418 | -4/Lab | Installed Core Expander, added new Weapon slot 10425 | -4/Lab | Found Alien Artifact 10425 | -4/Lab | Identified Integrated Dissipator 10425 | -4/Lab | Installed Integrated Dissipator, increased core heat dissipation (+20) 10521 | -4/Lab | Found Prototype Energy Cannon 10521 | -4/Lab | Identified Potential Cannon 10526 | -4/Lab | Found Prototype Energy Cannon 10526 | -4/Lab | Identified Warp Cannon 10530 | -4/Lab | Found Prototype Protection 10530 | -4/Lab | Identified Exp. Powered Armor 10534 | -4/Lab | Found Prototype Hackware 10534 | -4/Lab | Identified Quantum Router 10645 | -4/Lab | Unable to decrypt terminal 10707 | -4/Lab | Found Transdimensional Reconstructor 10727 | -4/Lab | Unable to decrypt terminal 10789 | -4/Lab | Entered Research 10789 | -3/Research | Evolved 2 slots: Utility x2 10819 | -3/Research | Build established: Wizard-Tank 10832 | -3/Research | Found Fusion Bomb Launcher 10926 | -3/Research | Discovered new exit (range 7) 11129 | -3/Research | Intercept squad dispatched 11154 | -3/Research | Spotted Tracker 11167 | -3/Research | Destroyed Tracker 11170 | -3/Research | Spotted Combat Programmer 11175 | -3/Research | Destroyed Combat Programmer 11614 | -3/Research | Identified exit to Quarantine 11981 | -3/Research | Intercept squad dispatched 12000 | -3/Research | Spotted Tracker 12001 | -3/Research | Garrison activated, responded to threat 12009 | -3/Research | Spotted Combat Programmer 12020 | -3/Research | Destroyed Tracker 12032 | -3/Research | Destroyed Combat Programmer 12210 | -3/Research | Warped through subspace 12550 | -3/Research | Entered another Research area 12550 | -2/Research | Evolved 2 slots: Utility x2 12747 | -2/Research | Discovered new exit (range 14) 12778 | -2/Research | Destroyed 7 combat bots 12791 | -2/Research | Identified exit to Testing 12793 | -2/Research | Entered Testing 12794 | -2/Testing | Maximum security lockdown engaged 12823 | -2/Testing | Lost 10 parts (2p2n4u2w) 12839 | -2/Testing | Found Prototype Launcher 12839 | -2/Testing | Identified Z-bomb Delivery System 12843 | -2/Testing | Released all parts (11) 12879 | -2/Testing | Core integrity fell below 50% 12914 | -2/Testing | System corruption reached 10% 12930 | -2/Testing | Discovered new exit (range 12) 12937 | -2/Testing | Entered Access 12937 | -1/Access | Evolved 2 slots: Propulsion x1, Utility x1 13187 | -1/Access | First assault squad dispatched 13377 | -1/Access | Intercept squad dispatched 13415 | -1/Access | Spotted Tracker 13416 | -1/Access | Spotted Tracker 13425 | -1/Access | Released all parts (15) 13427 | -1/Access | Spotted Combat Programmer 13441 | -1/Access | Core integrity fell below 50% 13464 | -1/Access | Core integrity fell below 20% 13476 | -1/Access | Destroyed by Combat Programmer with EMDS Last Messages --------------- 13425_ Released Adv. Remote Datajack. 13425_ Released Adv. System Shield. 13425_ Released Imp. Antigrav System. 13425_ Released Adv. Heat Sink. 13425_ Released Drone Bay. 13427_ Penetrated by EMDS Slug. 13430_ EMDS Slug penetrates Wall. 13432_ Penetrated by EMDS Slug. 13432_ Wave Collapse Detector explodes. 13437_ ALERT: Unidentified disturbance in Zone 1S, multiple assault carriers dispatched. 13452_ ALERT: Hostiles spotted, dispatching reinforcements to Terminal A024. 13454_ Penetrated by EMDS Slug. 13454_ K-01 Serf destroyed. 13454_ Tracker Prototype Flight Unit temporarily disabled. 13456_ Combat Programmer resets Tracker, system corruption cleaned. 13466_ Penetrated by EMDS Slug. 13473_ &T %KUSUMYKTYN:MS CC:XJEMP 13474_ Penetrated by EMDS Slug. Map ----- +----------------------------------------------------+ | | | | | | | | | | | | | | | | | | | | | | | | | | | | | | | | | | | | | ???????????????#############??? | | ???????????????# #??? | | ???????????????# #??? | | ???????????????# """"""" #??? | | ???????????????# """Y""" #??? | | ???????????????# #??? | | ???????????????# #??? | | ???????????????# @ #??? | | ???????????????######+###/##??? | | ???????????????????# #???? | | ???????????????????# #???? | | ??????????#######??# s #???? | | ??????????# ?# #???? | | ??????????# ?# #???? | | ??????????# # #???? | | ??????????# " # #???? | | ??????????# """ + #???? | | ??????????# """ # #???? | | ??????????# " # #???? | | ??????????# ?# #???? | | ??????????# ?# #???? | | ??????????#######??# p #???? | | ???????????????????# #???? | | ???????????????????# p###?? | | ???????????????????# #?? | | ???????????????????# #?? | | ???????????????????# #?? | | ???????????????????###+## #?? | | ????????????????????????# #?? | | ????????????????????????# #?? | | ????????????????????????# #?? | | ????????????????????????# #?? | +----------------------------------------------------+ Best States ------------- Heat Dissipation 95 Coolant Potential 115 Energy Generation 65 Energy Capacity 590 Matter Stores 600 Matter Capacity 600 Sight Range 16 Robot Scan Range 15 Terrain Scan Density 10 ECM Strength 2 Jamming Range 14 Armor Coverage 1250 Propulsion Shielding 90 Weapon Shielding 66 Weapon Cycling 15 Phase Shifting 10 Evasion (%) 64 Target Analysis 8 Recoil Reduction 6 Offensive Hacking 44 Defensive Hacking 25 Authchip Count 1 Item Schematics ----------------- Imp. Propulsion Shielding | -7/Factory | Hacked Hyp. Gauss Cannon | -6/Factory | Scanalyzed Combat Drone Bay | -6/Data Miner | Free Lgt. Regenerative Plating | -6/Data Miner | Free Cld. Gravmag System | -6/Data Miner | Free Imp. Matter Compressor | -6/Data Miner | Free Plasma Sword | -6/Data Miner | Free Centrium Wheel | -6/Data Miner | Free Imp. Point Defense System | -6/Data Miner | Free Hvy. Gauss Cannon | -6/Data Miner | Free Imp. Kinecellerator | -6/Data Miner | Free Imp. Force Field | -6/Data Miner | Free Mic. Antimatter Reactor | -6/Data Miner | Free Hyp. Railgun | -6/Data Miner | Free Assault Drone Bay | -5/Zhirov | Free Exp. Heat Sink | -5/Zhirov | Free Exp. Optical Array | -5/Zhirov | Free Imp. Arc Thrower | -5/Zhirov | Free Exp. Propulsion Shielding | -4/Factory | Hacked Robot Schematics ------------------ S-27 Virus | -6/Data Miner | Free R-10 Processor | -6/Data Miner | Free P-60 Hacker | -6/Data Miner | Free L-41 Fighter | -6/Data Miner | Free G-67 Veteran | -6/Data Miner | Free Fabricated ------------ Hyp. Gauss Cannon | x2 | -5/Factory Exp. Propulsion Shielding | x1 | -4/Factory Quantum Reactor | x2 | -4/Factory | Preloaded Cld. Gravmag System | x1 | -4/Factory Repaired ---------- Imp. Carbon-fiber Leg | 35% | -8/Materials Imp. Force Field | 50% | -7/Factory | Corrupted Hyp. Gauss Cannon | 8% | -6/Factory Antimatter Cannon | 30% | -6/Factory Cld. Gravmag System | 12% | -4/Factory Rocket Array | 34% | -4/Factory Cld. Gravmag System | 62% | -4/Factory Cld. Gravmag System | 65% | -4/Factory Hyp. Gauss Cannon | 44% | -4/Factory Studied --------- Chainsword | -6/Factory | Hacked Mic. Nuclear Core | -6/Factory | Hacked Alien Tech Used ----------------- Integrated Reactor Transdimensional Reconstructor Core Expander Integrated Dissipator Achievements -------------- Anyone Home? Coming In Hot Deductive Reasoning For Science! Hornet's Nest Immobile And Lovin' It Junior Dev Live, Flee, And Rebuild Max Potential Myspace Sixth Sense Thread The Needle Around The Corner Turtlemind Challenges ------------ None Game ------ Seed GammaVariableGutpuncher Manual? 0 Play Time 05:36:49 Cumulative 69.3 hours Start 2026.03.08 @ 12:09:26 End 2026.03.15 @ 01:03:54 Sessions 7 Manual Loads 0 Difficulty Rogue Special Mode None Game No. 42 Rogue 42 Adventurer 0 Explorer 0 Win Type - Total 2 Types 1/0/1/0/0/0/0/0/0/0 Lore% 37 Gallery% 40 Achievement% 28 Wizard Run 0 Options --------- Layout 0 ASCII 0 Keyboard 0 Movement Mouse Keybinds 0 Fullscreen 2 Font 24/Tamsyn Map View 76x50 Zoom Use 0% Tactical HUD 1 Map Filters NONE Filters NONE Steam 1 RUN: cab73e6e-5a31-4b0c-b6dc-1f6c319f8340